fUSD/lending_fUSD_20260401
["ID","MTS","AMOUNT","RATE_DAILY","PERIOD"]
[419245560,1775040641035,-553.51227966,0.00015805,2]
[419245561,1775040641045,-9552.16786547,0.00015829,2]
[419245562,1775040641056,-500.0,0.00015829,2]
[419245563,1775040641066,-151.0,0.00015829,2]
[419245564,1775040641077,-282.71673119,0.00015829,2]
[419245565,1775040641087,-150.0,0.0001584,2]
[419245566,1775040641097,-1500.0,0.00015846,2]
[419245567,1775040641107,-536.9866911,0.00015873,2]
[419245568,1775040641118,-500.41125099,0.00015873,2]
[419245569,1775040641128,-224.28659877,0.00015873,2]
[419245570,1775040641139,-500.0,0.00015873,2]
[419245571,1775040641149,-9905.5980765,0.00015884,2]
[419245572,1775040641159,-500.0,0.00015884,2]
[419245573,1775040641169,-151.0,0.00015884,2]
[419245574,1775040641179,-293.17725025,0.00015884,2]
[419245575,1775040641189,-500.0,0.0001589,2]
[419245576,1775040641200,-500.0,0.0001589,2]
[419245577,1775040641210,-500.0,0.0001589,2]
[419245578,1775040641220,-500.0,0.0001589,2]
[419245579,1775040641230,-500.0,0.0001589,2]
[419245580,1775040641240,-500.0,0.0001589,2]
[419245581,1775040641250,-500.0,0.0001589,2]
[419245582,1775040641263,-500.0,0.0001589,2]
[419245583,1775040641274,-500.0,0.0001589,2]
[419245584,1775040641285,-500.0,0.0001589,2]
[419245586,1775040641294,-500.0,0.0001589,2]
[419245588,1775040641305,-500.0,0.0001589,2]
[419245590,1775040641314,-500.0,0.0001589,2]
[419245592,1775040641325,-626.71602316,0.0001589,2]
[419245594,1775040641334,-500.0,0.0001589,2]
[419245596,1775040641344,-500.0,0.0001589,2]
[419245598,1775040641354,-500.0,0.0001589,2]
[419245600,1775040641364,-611.75027897,0.0001589,2]
[419245602,1775040641374,-925.0,0.0001589,2]
[419245604,1775040641387,-925.0,0.0001589,2]
[419245606,1775040641397,-925.0,0.0001589,2]
[419245608,1775040641406,-925.0,0.0001589,2]
[419245609,1775040641416,-925.0,0.0001589,2]
[419245611,1775040641426,-925.0,0.0001589,2]
[419245613,1775040641436,-925.0,0.0001589,2]
[419245615,1775040641446,-925.0,0.0001589,2]
[419245618,1775040641456,-925.0,0.0001589,2]
[419245620,1775040641466,-925.0,0.0001589,2]
[419245621,1775040641476,-925.0,0.0001589,2]
[419245624,1775040641487,-925.0,0.0001589,2]
[419245626,1775040641497,-925.0,0.0001589,2]
[419245628,1775040641507,-925.0,0.0001589,2]
[419245630,1775040641517,-925.0,0.0001589,2]
[419245632,1775040641528,-925.0,0.0001589,2]
[419245634,1775040641538,-925.0,0.0001589,2]
[419245636,1775040641547,-925.0,0.0001589,2]
[419245638,1775040641557,-925.0,0.0001589,2]
[419245640,1775040641566,-925.0,0.0001589,2]
[419245642,1775040641576,-925.0,0.0001589,2]
[419245643,1775040641586,-925.0,0.0001589,2]
[419245644,1775040641596,-925.0,0.0001589,2]
[419245645,1775040641606,-943.71767923,0.0001589,2]
[419245646,1775040641616,-500.0,0.0001589,2]
[419245647,1775040641626,-500.0,0.0001589,2]
[419245648,1775040641636,-490.83014846,0.0001589,2]
[419245649,1775040641645,-500.0,0.0001589,2]
[419245650,1775040641655,-500.0,0.0001589,2]
[419245651,1775040641665,-500.0,0.0001589,2]
[419245652,1775040641676,-500.0,0.0001589,2]
[419245653,1775040641685,-500.0,0.0001589,2]
[419245654,1775040641695,-500.0,0.0001589,2]
[419245655,1775040641705,-500.0,0.0001589,2]
[419245656,1775040641716,-500.0,0.0001589,2]
[419245657,1775040641726,-500.0,0.0001589,2]
[419245658,1775040641735,-500.0,0.0001589,2]
[419245659,1775040641746,-500.0,0.0001589,2]
[419245660,1775040641755,-500.0,0.0001589,2]
[419245661,1775040641765,-500.0,0.0001589,2]
[419245662,1775040641776,-169.33060056,0.0001589,2]
[419245663,1775040641786,-2500.0,0.0001589,2]
[419245664,1775040641797,-533.7,0.00015895,2]
[419245665,1775040641807,-5452.99758857,0.000159,2]
[419245666,1775040641819,-150.71162126,0.000159,2]
[419245667,1775040641829,-5682.63426879,0.000159,2]
[419245668,1775040641840,-173.3840015,0.000159,2]
[419245669,1775040641851,-3638.15710727,0.000159,2]
[419245670,1775040641862,-201.54592142,0.000159,2]
[419245671,1775040641874,-10272.10520533,0.00015939,2]
[419245672,1775040641884,-500.0,0.00015939,2]
[419245673,1775040641896,-151.0,0.00015939,2]
[419245674,1775040641907,-304.02480851,0.00015939,2]
[419245675,1775040641928,-3645.56059989,0.0001596,2]
[419245676,1775040641938,-627.00850068,0.00015973,2]
[419245677,1775040641949,-500.0,0.00015973,2]
[419245678,1775040641960,-403.1197189,0.0001599,2]
[419245679,1775040641971,-403.1197189,0.0001599,2]
[419245680,1775040641982,-10652.17309792,0.00015994,2]
[419245681,1775040641994,-500.0,0.00015994,2]
[419245682,1775040642212,-151.0,0.00015994,2]
[419245683,1775040642224,-315.27372642,0.00015994,2]
[419245684,1775040642234,-151.0,0.00015997,2]
[419245685,1775040642244,-40736.7569695,0.00015997,2]
[419245686,1775040642253,-521.6597525,0.00015997,2]
[419245687,1775040642262,-307208.5429536,0.00015997,2]
[419245688,1775040642272,-4436.0639883,0.00015997,2]
[419245689,1775040642283,-151.0,0.00015997,2]
[419245690,1775040642293,-151.0,0.00015997,2]
[419245691,1775040642302,-151.0,0.00015997,2]
[419245692,1775040642311,-257.35925,0.00015997,2]
[419245693,1775040642321,-257.35925,0.00015997,2]
[419245694,1775040642332,-257.35925,0.00015997,2]
[419245695,1775040642341,-257.35925,0.00015997,2]
[419245696,1775040642350,-151.0,0.00015997,2]
[419245697,1775040642360,-151.0,0.00015997,2]
[419245698,1775040642369,-262.969685,0.00015997,2]
[419245699,1775040642378,-705.125668,0.00015997,2]
[419245700,1775040642387,-705.125668,0.00015997,2]
[419245701,1775040642397,-705.125668,0.00015997,2]
[419245702,1775040642408,-705.125668,0.00015997,2]
[419245703,1775040642418,-500.0,0.00015997,2]
[419245704,1775040642427,-500.0,0.00015997,2]
[419245705,1775040642438,-500.0,0.00015997,2]
[419245706,1775040642446,-500.0,0.00015997,2]
[419245707,1775040642455,-500.0,0.00015997,2]
[419245708,1775040642466,-500.0,0.00015997,2]
[419245709,1775040642476,-500.0,0.00015997,2]
[419245710,1775040642486,-500.0,0.00015997,2]
[419245711,1775040642497,-500.0,0.00015997,2]
[419245712,1775040642509,-500.0,0.00015997,2]
[419245713,1775040642520,-500.0,0.00015997,2]
[419245714,1775040642531,-500.0,0.00015997,2]
[419245715,1775040642545,-500.0,0.00015997,2]
[419245716,1775040642555,-500.0,0.00015997,2]
[419245717,1775040642564,-500.0,0.00015997,2]
[419245718,1775040642574,-500.0,0.00015997,2]
[419245719,1775040642585,-500.0,0.00015997,2]
[419245720,1775040642594,-500.0,0.00015997,2]
[419245721,1775040642604,-500.0,0.00015997,2]
[419245722,1775040642613,-500.0,0.00015997,2]
[419245723,1775040642623,-500.0,0.00015997,2]
[419245724,1775040642633,-500.0,0.00015997,2]
[419245725,1775040642644,-500.0,0.00015997,2]
[419245726,1775040642653,-500.0,0.00015997,2]
[419245727,1775040642663,-500.0,0.00015997,2]
[419245728,1775040642672,-500.0,0.00015997,2]
[419245729,1775040642682,-500.0,0.00015997,2]
[419245730,1775040642691,-500.0,0.00015997,2]
[419245731,1775040642705,-500.0,0.00015997,2]
[419245732,1775040642715,-500.0,0.00015997,2]
[419245733,1775040642725,-500.0,0.00015997,2]
[419245734,1775040642734,-500.0,0.00015997,2]
[419245735,1775040642744,-500.0,0.00015997,2]
[419245736,1775040642753,-500.0,0.00015997,2]
[419245737,1775040642763,-500.0,0.00015997,2]
[419245738,1775040642772,-500.0,0.00015997,2]
[419245739,1775040642782,-500.0,0.00015997,2]
[419245740,1775040642792,-500.0,0.00015997,2]
[419245741,1775040642801,-500.0,0.00015997,2]
[419245742,1775040642810,-500.0,0.00015997,2]
[419245743,1775040642820,-500.0,0.00015997,2]
[419245744,1775040642830,-363.417537,0.00015997,2]
[419245745,1775040642839,-666.0,0.00015999,2]
[419245746,1775040642851,-742.99189388,0.00015999,2]
[419245747,1775040642862,-155.398,0.00015999,2]
[419245748,1775040642872,-181.42634673,0.00016,2]
[419245749,1775040642883,-264.08018043,0.00016,2]
[419245750,1775040642893,-235.53494643,0.00016,2]
[419245751,1775040642902,-224.22272223,0.00016,2]
[419245752,1775040642912,-271.90516272,0.00016,2]
[419245753,1775040642921,-150.70564753,0.00016,2]
[419245754,1775040642931,-169.66792767,0.00016,2]
[419245755,1775040642941,-195.61734034,0.00016,2]
[419245756,1775040642950,-150.69192866,0.00016,2]
[419245757,1775040642960,-391964.73409419,0.00016,2]
[419245758,1775040642969,-925390.06197182,0.00016,2]
[419245759,1775040642986,-47849.03429514,0.00016,2]
[419245760,1775040643196,-2082827.56401562,0.00016,2]
[419245769,1775040646185,-1018.11584533,0.0001568,2]
[419245770,1775040646194,-1037.88415468,0.00016,2]
[419245771,1775040646206,-10355.32941946,0.00016,2]
[419245772,1775040646217,-347.9,0.00016,2]
[419245773,1775040646237,-1388.7,0.00016,2]
[419245775,1775040649017,-673.3,0.0001568,2]
[419245776,1775040649156,-224.96988198,0.0001568,2]
[419245777,1775040649169,-127.66741154,0.0001568,2]
[419245778,1775040649179,-1064.25581263,0.0001568,2]
[419245779,1775040649189,-21479.44287711,0.00016,2]
[419245783,1775040882381,4302.386,8e-05,2]
[419245784,1775040907799,157.0,8e-05,3]
[419245785,1775040965846,157.0,8e-05,3]
[419245786,1775041085311,157.0,8e-05,3]
[419245788,1775041147441,157.0,8e-05,3]
[419245789,1775041207152,157.0,8e-05,3]
[419245790,1775041268380,157.0,8e-05,3]
[419245791,1775041327849,157.0,8e-05,3]
[419245792,1775041387058,157.0,8e-05,3]
[419245793,1775041511766,157.0,8e-05,3]
[419245794,1775041566990,157.0,8e-05,3]
[419245795,1775041632086,157.0,8e-05,3]
[419245797,1775041687508,157.0,8e-05,3]
[419245798,1775041746491,157.0,8e-05,3]
[419245799,1775041812607,157.0,8e-05,3]
[419245818,1775041833510,-500.0,0.0001,2]
[419245819,1775041833522,-294.0,0.0001,2]
[419245820,1775041833534,-250.0,0.000105,2]
[419245821,1775041833545,-160.64175446,0.00010723,2]
[419245822,1775041833555,-243.25514949,0.00010865,2]
[419245823,1775041833567,-6.74485051,0.00010865,2]
[419245824,1775041833577,-150.0,0.00010999,2]
[419245825,1775041833586,-300.0,0.00010999,2]
[419245826,1775041833597,-14.59190149,0.00010999,2]
[419245827,1775041833658,-1185.40809851,0.00010999,2]
[419245828,1775041833667,-300.0,0.00011,2]
[419245829,1775041833677,-300.0,0.00011,2]
[419245830,1775041833687,-300.0,0.00011,2]
[419245831,1775041833696,-300.0,0.00011,2]
[419245832,1775041833705,-301.88355522,0.00011,2]
[419245833,1775041833715,-195.0,0.00011,2]
[419245834,1775041833725,-195.0,0.00011,2]
[419245835,1775041833735,-600.0,0.00011,2]
[419245836,1775041833745,-600.0,0.00011,2]
[419245837,1775041833754,-600.0,0.00011,2]
[419245838,1775041833764,-600.0,0.00011,2]
[419245839,1775041833774,-600.0,0.00011,2]
[419245840,1775041833783,-195.0,0.00011,2]
[419245841,1775041833792,-195.0,0.00011,2]
[419245842,1775041833802,-250.0,0.00011,2]
[419245843,1775041833811,-275.10365692,0.00011,2]
[419245844,1775041833820,-150.0,0.000111,2]
[419245845,1775041833831,-1602.99,0.00011238,2]
[419245846,1775041833840,-2000.0,0.00011248,2]
[419245847,1775041833848,-151.0,0.00011299,2]
[419245848,1775041833857,-151.0,0.00011299,2]
[419245849,1775041833867,-151.0,0.00011299,2]
[419245850,1775041833877,-151.0,0.00011299,2]
[419245851,1775041833886,-151.0,0.00011299,2]
[419245852,1775041833896,-151.0,0.00011299,2]
[419245853,1775041833905,-151.0,0.00011299,2]
[419245854,1775041833914,-151.0,0.00011299,2]
[419245855,1775041833925,-151.0,0.00011299,2]
[419245856,1775041833934,-151.0,0.00011299,2]
[419245857,1775041833943,-151.0,0.00011299,2]
[419245858,1775041833952,-151.0,0.00011299,2]
[419245859,1775041833963,-9521.55,0.00011306,2]
[419245860,1775041833973,-9230.41,0.00011306,2]
[419245861,1775041833982,-1408.03,0.00011475,2]
[419245862,1775041833992,-157.11,0.000118,2]
[419245863,1775041834002,-151.0,0.00011825,2]
[419245864,1775041834011,-151.0,0.00011837,2]
[419245865,1775041834021,-255.0,0.00012044,2]
[419245866,1775041834031,-420.0,0.00012087,2]
[419245867,1775041834040,-1680.0,0.00012099,2]
[419245868,1775041834051,-711.24644738,0.00012254,2]
[419245869,1775041834060,-338.35873595,0.00012353,2]
[419245870,1775041834069,-273.0628458,0.00012353,2]
[419245871,1775041834079,-500.0,0.00012353,2]
[419245872,1775041834089,-500.0,0.00012353,2]
[419245873,1775041834098,-202.67416615,0.00012353,2]
[419245874,1775041834107,-500.0,0.00012353,2]
[419245875,1775041834116,-55119.28421491,0.00012354,2]
[419245876,1775041834128,-7180.49192949,0.00012354,2]
[419245877,1775041834175,-613.17829311,0.00012354,2]
[419245878,1775041834268,-303.9856231,0.00012353,2]
[419245879,1775041834278,-192.2628251,0.00012354,2]
[419245880,1775041834422,-805.848,0.00012354,2]
[419245881,1775041834434,-819.1793169,0.00012354,2]
[419245884,1775041838460,-196.28388046,0.00012353,2]
[419245885,1775041838470,-138561.44005505,0.00012354,2]
[419245886,1775041838723,-11584.20000061,0.00012354,2]
[419245919,1775041841284,-321.82190696,0.00012353,2]
[419245920,1775041841293,-500.0,0.00012353,2]
[419245921,1775041841303,-178.17809304,0.00012354,2]
[419245922,1775041841441,-1982.76593172,0.00012354,2]
[419245951,1775041844798,-1071.18168082,0.00012354,2]
[419245952,1775041844810,-639.20673426,0.00012354,2]
[419245953,1775041844915,-325.58015431,0.00012354,2]
[419245954,1775041846796,-13371.4208097,0.00012254,2]
[419245955,1775041846807,-671.87721381,0.00012254,2]
[419245971,1775042082125,507.89,5.815e-05,2]
[419245972,1775042082308,507.89,6.121e-05,2]
[419245973,1775042082507,507.89,6.427e-05,2]
[419245974,1775042082707,507.89,6.733e-05,2]
[419245975,1775042083105,507.89,7.039e-05,2]
[419245976,1775042083315,507.89,7.345e-05,2]
[419245977,1775042083508,507.89,7.651e-05,2]
[419245978,1775042083712,507.89,7.957e-05,2]
[419245979,1775042083937,507.89,8.263e-05,2]
[419245980,1775042106065,157.0,8.263e-05,3]
[419245981,1775042127346,157.67,8.356e-05,2]
[419245982,1775042227769,158.0,8.263e-05,3]
[419245983,1775042230830,315.28,8.043e-05,2]
[419245984,1775042291216,158.0,8.263e-05,3]
[419245985,1775042293828,1240.0,7.759e-05,2]
[419245986,1775042351387,158.0,8.263e-05,3]
[419245987,1775042356476,900.0,7.588e-05,2]
[419245988,1775042356996,1100.0,8.229e-05,2]
[419245989,1775042525229,158.0,8.263e-05,3]
[419245990,1775042540472,771.75,8.064e-05,2]
[419245991,1775042664112,709.75,7.758e-05,2]
[419245992,1775042725928,485.6,7.566e-05,2]
[419245993,1775042726431,1430.75,8.219e-05,2]
[419245994,1775042789696,359.39,8.027e-05,2]
[419245997,1775043031481,-300.0,8.521e-05,2]
[419245998,1775043031491,-412.0,8.521e-05,2]
[419245999,1775043031500,-300.0,8.521e-05,2]
[419246000,1775043031510,-5000.0,8.522e-05,2]
[419246001,1775043031519,-250.0,8.522e-05,2]
[419246002,1775043031528,-1870.0,8.522e-05,2]
[419246003,1775043031538,-526.39307922,8.525e-05,2]
[419246004,1775043031548,-250.0,8.536e-05,2]
[419246005,1775043031557,-507.89,8.569e-05,2]
[419246006,1775043031567,-600.0,8.669e-05,2]
[419246007,1775043031576,-800.0,8.792e-05,2]
[419246008,1775043031586,-507.89,8.876e-05,2]
[419246009,1775043031595,-637.25,8.916e-05,2]
[419246010,1775043031604,-762.39,8.991e-05,2]
[419246011,1775043031615,-150.0,9.1e-05,2]
[419246012,1775043031624,-275.0,9.11e-05,2]
[419246013,1775043031633,-1452.0,9.147e-05,2]
[419246014,1775043031643,-1408.0,9.166e-05,2]
[419246015,1775043031652,-507.89,9.182e-05,2]
[419246016,1775043031661,-1091.54,9.288e-05,2]
[419246017,1775043031670,-420.0,9.373e-05,2]
[419246018,1775043031680,-420.0,9.373e-05,2]
[419246019,1775043031689,-5000.0,9.374e-05,2]
[419246020,1775043031699,-250.0,9.374e-05,2]
[419246021,1775043031708,-570.0,9.466e-05,2]
[419246022,1775043031717,-195.0,9.485e-05,2]
[419246023,1775043031726,-507.89,9.488e-05,2]
[419246024,1775043031736,-150.0,9.488e-05,2]
[419246025,1775043031747,-1167.0,9.504e-05,2]
[419246026,1775043031755,-303.97,9.534e-05,2]
[419246027,1775043031766,-484.49,9.672e-05,2]
[419246028,1775043031776,-507.89,9.794e-05,2]
[419246029,1775043031785,-500.0,9.973e-05,2]
[419246030,1775043031794,-500.0,9.973e-05,2]
[419246031,1775043031804,-500.0,9.973e-05,2]
[419246033,1775043031813,-500.0,9.973e-05,2]
[419246034,1775043031822,-500.0,9.973e-05,2]
[419246035,1775043031832,-500.0,9.973e-05,2]
[419246036,1775043031841,-500.0,9.999e-05,2]
[419246037,1775043031851,-500.0,9.999e-05,2]
[419246038,1775043031860,-589.8994317,9.999e-05,2]
[419246039,1775043031869,-500.0,9.999e-05,2]
[419246040,1775043031879,-151.0,0.0001,2]
[419246041,1775043031888,-151.0,0.0001,2]
[419246042,1775043031897,-151.0,0.0001,2]
[419246043,1775043031907,-151.0,0.0001,2]
[419246044,1775043031916,-151.0,0.0001,2]
[419246045,1775043031925,-151.0,0.0001,2]
[419246046,1775043031934,-151.0,0.0001,2]
[419246047,1775043031944,-151.0,0.0001,2]
[419246048,1775043031953,-151.0,0.0001,2]
[419246049,1775043031962,-151.0,0.0001,2]
[419246050,1775043031972,-151.0,0.0001,2]
[419246051,1775043031981,-151.0,0.0001,2]
[419246052,1775043031991,-34245.91950114,0.0001,2]
[419246053,1775043032003,-2491.81781313,0.0001,2]
[419246054,1775043032015,-6051.14756722,0.0001,2]
[419246055,1775043032030,-3396.0,0.0001,2]
[419246056,1775043032054,-1610.89109739,0.0001,2]
[419246057,1775043032065,-8334.6282073,0.0001,2]
[419246058,1775043032077,-510.0,0.0001,2]
[419246059,1775043032088,-499.50294632,0.0001,2]
[419246060,1775043032114,-756.18617286,0.0001,2]
[419246061,1775043032129,-8279.3824823,0.0001,2]
[419246063,1775043037583,-542.46609112,0.0001,2]
[419246064,1775043037638,-4737.84606015,0.0001,2]
[419246075,1775043039870,-1317.07206626,0.0001,2]
[419246076,1775043039925,-17911.13999481,0.0001,2]
[419246077,1775043039935,-500.0,0.0001,2]
[419246078,1775043039951,-500.0,0.00010007,2]
[419246079,1775043039960,-507.89,0.000101,2]
[419246080,1775043039971,-500.0,0.00010274,2]
[419246081,1775043039981,-7191.52,0.00010282,2]
[419246082,1775043039990,-5534.0,0.000103,3]
[419246083,1775043040001,-587.0,0.00010311,2]
[419246084,1775043040010,-507.89,0.00010406,2]
[419246085,1775043040022,-255.0,0.00010436,2]
[419246086,1775043040033,-1000.0,0.00010521,2]
[419246087,1775043040042,-1000.0,0.00010521,2]
[419246088,1775043040054,-1000.0,0.00010521,2]
[419246089,1775043040064,-500.0,0.00010521,2]
[419246090,1775043040074,-500.0,0.00010548,2]
[419246091,1775043040083,-161.29,0.00010549,2]
[419246092,1775043040094,-192.1973,0.000106,7]
[419246093,1775043040104,-5534.0,0.000106,5]
[419246094,1775043040114,-250.0,0.00010628,2]
[419246095,1775043040125,-507.89,0.00010712,2]
[419246096,1775043040137,-2000.0,0.000108,2]
[419246097,1775043040149,-151.0,0.00010804,2]
[419246098,1775043040159,-685.71695526,0.00010944,2]
[419246099,1775043040170,-218.01,0.00010944,2]
[419246100,1775043040180,-9858.53,0.0001095,2]
[419246101,1775043040190,-500.0,0.00010959,2]
[419246102,1775043040199,-507.89,0.00011018,2]
[419246103,1775043040209,-500.0,0.00011123,2]
[419246104,1775043040218,-500.0,0.00011213,2]
[419246105,1775043040229,-218.01,0.00011218,2]
[419246106,1775043040239,-1000.0,0.00011307,2]
[419246107,1775043040248,-507.89,0.00011324,2]
[419246108,1775043040258,-823.0,0.00011342,2]
[419246109,1775043040269,-4196.15,0.00011507,2]
[419246110,1775043040279,-507.89,0.0001163,2]
[419246111,1775043040290,-500.0,0.00011699,2]
[419246112,1775043040300,-177.77445673,0.00011868,2]
[419246113,1775043040312,-500.0,0.00011973,2]
[419246114,1775043040322,-246.2654,0.00012,12]
[419246115,1775043040332,-640.12180257,0.00012044,2]
[419246116,1775043040343,-12308.3423963,0.00012044,2]
[419246117,1775043040354,-24199.00226124,0.00012044,2]
[419246118,1775043040364,-200.0,0.00012067,2]
[419246119,1775043040375,-269.04475954,0.00012133,2]
[419246120,1775043040384,-491.8719163,0.00012142,2]
[419246121,1775043040395,-500.0,0.00012142,2]
[419246122,1775043040404,-412.78993617,0.00012142,2]
[419246123,1775043040415,-1500000.0,0.00012143,2]
[419246124,1775043040426,-32842.583,0.00012144,2]
[419246125,1775043040436,-5328.6287,0.00012144,2]
[419246126,1775043040447,-2500.0,0.00012144,2]
[419246127,1775043040457,-5104.5676,0.00012154,2]
[419246128,1775043040473,-2000.0,0.000122,2]
[419246129,1775043040483,-128106.53871111,0.0001224,2]
[419246130,1775043040493,-13323.5766259,0.00012244,2]
[419246131,1775043040503,-239703.5858515,0.00012244,2]
[419246132,1775043040513,-30552.5677271,0.00012244,2]
[419246133,1775043040522,-1640.6353389,0.00012244,2]
[419246134,1775043040533,-70443.4066182,0.00012244,2]
[419246135,1775043040543,-5521.7226435,0.00012244,2]
[419246136,1775043040552,-4600.7174599,0.00012244,2]
[419246137,1775043040562,-199224.4728444,0.00012244,2]
[419246138,1775043040572,-1000.0,0.00012254,2]
[419246139,1775043040582,-160.0,0.00012324,2]
[419246140,1775043040592,-254.055241,0.00012324,2]
[419246141,1775043040602,-348.110483,0.00012324,2]
[419246142,1775043040613,-185.343723,0.00012343,2]
[419246144,1775043040624,-160.0,0.00012343,2]
[419246145,1775043040634,-352.852893,0.00012343,2]
[419246146,1775043040645,-545.705787,0.00012343,2]
[419246147,1775043040655,-160.0,0.00012343,2]
[419246148,1775043040665,-358.294941,0.00012343,2]
[419246149,1775043040676,-556.589883,0.00012343,2]
[419246151,1775043040687,-180.399104,0.00012343,2]
[419246154,1775043040697,-151.0,0.00012351,2]
[419246155,1775043040708,-151.0,0.00012351,2]
[419246156,1775043040719,-500.0,0.00012353,2]
[419246157,1775043040729,-500.0,0.00012353,3]
[419246158,1775043040740,-500.0,0.00012353,4]
[419246159,1775043040751,-1078.9415556,0.00012354,2]
[419246160,1775043040761,-200.0,0.00012354,2]
[419246161,1775043040771,-500.0,0.00012354,2]
[419246162,1775043040781,-200.0,0.00012354,2]
[419246163,1775043040791,-235.20456477,0.00012373,2]
[419246164,1775043040801,-160.0,0.00012401,2]
[419246165,1775043040812,-187.206616,0.00012401,2]
[419246166,1775043040822,-214.413233,0.00012401,2]
[419246167,1775043040832,-500.0,0.00012452,5]
[419246168,1775043040842,-640.12180256,0.00012472,2]
[419246169,1775043040852,-24199.00226122,0.00012472,2]
[419246170,1775043040862,-1152.0,0.00012476,2]
[419246171,1775043040872,-200.0,0.00012478,2]
[419246172,1775043040882,-200.0,0.00012478,2]
[419246173,1775043040892,-732.95436912,0.00012502,2]
[419246174,1775043040902,-500.0,0.00012575,2]
[419246175,1775043040912,-12308.34239627,0.00012595,2]
[419246176,1775043040922,-200.0,0.00012602,2]
[419246178,1775043040932,-200.0,0.00012602,2]
[419246180,1775043040942,-2000.0,0.00012654,2]
[419246182,1775043040954,-164.034496,0.00012719,2]
[419246184,1775043040964,-238.919643,0.00012719,2]
[419246187,1775043040976,-200.0,0.00012728,2]
[419246189,1775043040986,-200.0,0.00012728,2]
[419246191,1775043040996,-157.11,0.00012783,2]
[419246193,1775043041006,-500.0,0.00012792,2]
[419246195,1775043041016,-500.0,0.00012792,3]
[419246197,1775043041026,-500.0,0.00012792,4]
[419246198,1775043041035,-500.0,0.00012792,5]
[419246199,1775043041045,-500.0,0.00012792,6]
[419246200,1775043041055,-500.0,0.00012792,7]
[419246201,1775043041065,-200.0,0.00012856,2]
[419246202,1775043041075,-200.0,0.00012856,2]
[419246203,1775043041086,-640.12180256,0.00012901,2]
[419246204,1775043041095,-1408.03,0.00012909,2]
[419246205,1775043041105,-1500.0,0.00012916,2]
[419246206,1775043041114,-346.438965,0.0001294,2]
[419246207,1775043041124,-481.163037,0.0001296,2]
[419246208,1775043041134,-488.584011,0.0001296,2]
[419246209,1775043041143,-190.752456,0.00012987,2]
[419246210,1775043041154,-220.90810963,0.00012987,2]
[419246211,1775043041164,-259.73119316,0.00012987,2]
[419246212,1775043041175,-250.0,0.00013,2]
[419246213,1775043041185,-255.281749,0.00013021,2]
[419246214,1775043041194,-505.0,0.00013111,2]
[419246215,1775043041204,-505.0,0.00013111,2]
[419246216,1775043041214,-192.833186,0.00013128,2]
[419246217,1775043041224,-12308.34239627,0.00013146,2]
[419246218,1775043041233,-487.0875295,0.0001326,2]
[419246219,1775043041243,-456.93187587,0.0001326,2]
[419246220,1775043041252,-500.0,0.0001332,8]
[419246221,1775043041263,-640.12180256,0.00013329,2]
[419246222,1775043041272,-315.5438,0.000134,17]
[419246223,1775043041281,-1026.5588236,0.00013426,2]
[419246224,1775043041291,-187.07215406,0.0001359,2]
[419246225,1775043041301,-2425.43807152,0.00013599,2]
[419246226,1775043041312,-161.29,0.00013643,2]